bitfinex/quotes_SOLUSD_20250908
["timestamp","ask_amount","ask_price","bid_price","bid_amount"]
[1757353272581,13.59559401,216.16,216.13,0.03]
[1757353272760,19.13831891,216.16,216.13,0.03]
[1757353272957,19.85831891,216.16,216.15,27.23]
[1757353273161,19.85831891,216.16,216.15,0.03]
[1757353273887,24.48452172,216.16,216.15,0.03]
[1757353280067,19.55059798,216.16,216.14,0.03]
[1757353280273,146.81559401,216.15,216.14,0.03]
[1757353280480,156.37593459,216.15,216.14,0.03]
[1757353280874,146.81559401,216.15,216.14,0.03]
[1757353281475,146.09559401,216.15,216.14,0.03]
[1757353281676,13.59559401,216.15,216.14,0.03]
[1757353282276,19.55081201,216.15,216.14,0.03]
[1757353282990,24.48473575,216.15,216.14,0.03]
[1757353285094,19.55081201,216.15,216.14,0.03]
[1757353285895,13.59559401,216.14,216.12,0.03]
[1757353286097,36.05077785,216.15,215.96,2.00138044]
[1757353286098,13.59559401,216.08,215.96,2.00138044]
[1757353286298,26.0,216.09,215.97,17.0]
[1757353286299,13.59559401,216.01,215.97,17.0]
[1757353286596,13.59559401,215.99,215.97,17.0]
[1757353286893,13.59559401,216.02,216.0,26.0]
[1757353287104,13.59559401,216.06,216.01,0.18]
[1757353287396,13.59559401,216.04,216.0,26.0]
[1757353288797,13.59559401,216.04,216.01,4.6294153]
[1757353288980,13.59559401,216.04,216.0,26.0]
[1757353289173,13.59559401,216.04,216.0,30.62958183]
[1757353289979,0.72,216.04,216.0,30.62958183]
[1757353290296,13.59559401,216.04,216.0,30.62958183]
[1757353290898,18.52951775,216.02,215.93,0.38]
[1757353291081,13.59559401,215.98,215.93,0.2]
[1757353291282,13.59559401,215.96,215.93,0.2]
[1757353291482,13.59559401,215.97,215.93,4.83110123]
[1757353291683,13.59559401,215.97,215.95,26.0]
[1757353291873,13.59559401,216.01,215.96,26.18]
[1757353292086,13.59559401,216.03,215.96,26.18]
[1757353292281,13.59559401,216.01,216.0,0.03]
[1757353292485,13.59559401,216.02,216.0,36.35]
[1757353292689,14.20439517,216.01,216.0,36.35]
[1757353293490,14.92439517,216.01,216.0,0.03]
[1757353294011,14.92439517,216.01,216.0,36.35]
[1757353294889,14.20439517,216.01,216.0,36.35]
[1757353295489,13.59559401,216.01,216.0,36.35]
[1757353297201,13.59559401,216.01,216.0,40.97962962]
[1757353297404,13.59559401,216.01,216.0,36.35]
[1757353299702,13.59559401,216.01,216.0,40.97962962]
[1757353300208,13.59559401,216.01,216.0,36.35]
[1757353306793,14.30559401,216.01,216.0,36.35]
[1757353306996,14.30559401,216.01,216.0,0.03]
[1757353307210,18.93500931,216.01,216.0,16.57]
[1757353308210,18.93500931,216.01,216.0,0.03]
[1757353310397,22.36725924,216.01,216.0,0.03]
[1757353311115,18.93500931,216.01,216.0,0.03]
[1757353311305,22.36958932,216.01,216.0,0.03]
[1757353312809,13.59559401,216.0,215.97,36.35]
[1757353313008,13.59559401,215.98,215.97,36.35]
[1757353313333,17.74017402,215.98,215.97,36.35]
[1757353313701,22.37023235,215.98,215.97,36.35]
[1757353314727,17.74017402,215.98,215.97,36.35]
[1757353314926,18.34897518,215.98,215.97,36.35]
[1757353315226,22.97903351,215.98,215.97,36.35]
[1757353316019,22.97903351,215.98,215.97,0.03]
[1757353317603,26.14574724,215.98,215.97,0.03]
[1757353318004,37.72089308,215.98,215.95,0.03]
[1757353318225,13.59559401,215.96,215.95,0.03]
[1757353318521,17.63897518,215.96,215.95,0.03]
[1757353318725,18.34897518,215.96,215.95,0.03]
[1757353319100,22.9794623,215.96,215.95,0.03]
[1757353321431,22.2694623,215.96,215.95,0.03]
[1757353321614,17.63897518,215.96,215.95,0.03]
[1757353321810,13.59559401,215.96,215.95,0.03]
[1757353322015,0.60880116,215.98,215.95,0.03]
[1757353322511,13.59559401,215.96,215.95,0.03]
[1757353322716,14.20439517,215.96,215.95,0.03]
[1757353323329,14.91439517,215.96,215.95,0.03]
[1757353323505,14.20439517,215.96,215.95,0.03]
[1757353323705,13.59559401,215.97,215.95,0.03]
[1757353323944,0.60880116,215.96,215.95,0.03]
[1757353325636,19.54488229,215.96,215.95,0.03]
[1757353325871,14.20439517,215.96,215.95,0.03]
[1757353326840,18.83488229,215.96,215.95,0.03]
[1757353328440,14.20439517,215.96,215.95,0.03]
[1757353328814,13.59559401,215.96,215.95,26.21]
[1757353329942,3.02546383,216.04,215.96,26.0]
[1757353330123,2.41666267,216.04,216.0,26.0]
[1757353330330,2.41666267,216.04,216.01,36.52]
[1757353330532,2.41666267,216.04,216.01,41.14932638]
[1757353330731,2.41666267,216.04,216.01,40.96932638]
[1757353331044,13.59559401,216.03,216.01,36.34]
[1757353333038,13.59559401,216.03,216.01,40.96940752]
[1757353333419,13.59559401,216.03,216.01,36.34]
[1757353333948,13.59559401,216.07,216.01,36.52]
[1757353334162,13.59559401,216.05,216.01,41.14935618]
[1757353334525,13.59559401,216.05,216.01,40.96935618]
[1757353334726,14.28559401,216.05,216.01,36.34]
[1757353335026,13.59559401,216.03,216.02,36.32]
[1757353335649,13.59559401,216.03,215.99,4.62983383]
[1757353335650,4.62870792,216.05,215.98,0.18]
[1757353335828,13.59559401,216.02,215.99,36.32]
[1757353336850,13.59559401,216.02,216.0,36.32]
[1757353337435,13.59559401,216.02,215.98,26.0]
[1757353337624,13.59559401,216.02,215.99,36.32]
[1757353337625,13.59559401,216.0,215.99,36.32]
[1757353337829,14.28559401,216.0,215.95,4.66069379]
[1757353338129,4.62920199,216.02,215.96,62.32]
[1757353338130,13.59559401,215.98,215.96,62.32]
[1757353338665,13.59559401,215.98,215.96,36.32]
[1757353338826,13.59559401,215.96,215.95,0.03]
[1757353339028,17.05028267,215.96,215.95,36.35]
[1757353339332,17.74028267,215.96,215.95,36.35]
[1757353339738,17.74028267,215.96,215.95,0.03]
[1757353339923,17.74028267,215.96,215.95,32.31]
[1757353340321,20.9069964,215.96,215.95,0.03]
[1757353340726,13.59559401,215.94,215.93,0.2]
[1757353341037,17.3711089,215.94,215.93,0.2]
[1757353341223,18.0611089,215.94,215.92,0.03]
[1757353341429,13.59559401,215.92,215.9,0.03]
[1757353341638,17.3711089,215.91,215.9,0.03]
[1757353341838,18.0611089,215.91,215.9,0.03]
[1757353343336,22.69266834,215.91,215.9,0.03]
[1757353343527,24.14501393,215.91,215.9,0.03]
[1757353343728,22.69266834,215.91,215.9,0.03]
[1757353347156,19.52595461,215.91,215.9,0.03]
[1757353347650,22.69266834,215.91,215.9,0.03]
[1757353348283,13.59559401,215.85,215.82,36.32]
[1757353348484,13.59559401,215.83,215.82,36.32]
[1757353348667,0.69,215.85,215.82,36.32]
[1757353348862,13.59559401,215.83,215.82,36.32]
[1757353349172,18.22871008,215.84,215.82,36.32]
[1757353349370,18.91871008,215.84,215.82,36.32]
[1757353349960,13.59559401,215.84,215.82,36.32]
[1757353350272,18.22878535,215.84,215.82,36.32]
[1757353351066,18.91878535,215.84,215.82,36.32]
[1757353351267,0.60880116,215.86,215.83,0.27]
[1757353351457,13.59559401,215.87,215.82,36.32]
[1757353351665,0.69,215.86,215.82,36.32]
[1757353352287,14.20439517,215.87,215.82,36.32]
[1757353352460,14.89439517,215.87,215.82,36.32]
[1757353353075,26.0,215.8,215.73,0.39724469]
[1757353353293,14.20439517,215.79,215.74,0.27]
[1757353353459,30.4239105,215.79,215.73,14.07724469]
[1757353353663,13.59559401,215.77,215.73,14.07724469]
[1757353353865,13.59559401,215.75,215.73,14.07724469]
[1757353354392,14.89439517,215.78,215.73,14.07724469]
[1757353354559,4.13271006,215.77,215.73,14.07724469]
[1757353354760,13.59559401,215.75,215.73,14.07724469]
[1757353355452,14.89439517,215.75,215.73,14.07724469]
[1757353356276,4.63455891,215.78,215.73,14.34724469]
[1757353356578,13.59559401,215.78,215.74,0.27]
[1757353356781,13.59559401,215.79,215.75,36.5]
[1757353357484,0.69,215.78,215.75,36.5]
[1757353358162,18.22973874,215.79,215.75,36.5]
[1757353358565,4.73337727,215.78,215.75,36.5]
[1757353358763,1.29880116,215.78,215.75,36.5]
[1757353359369,13.59559401,215.76,215.75,36.5]
[1757353359569,13.59559401,215.76,215.58,0.27]
[1757353359570,26.0,215.7,215.58,0.27]
[1757353359774,13.59559401,215.66,215.58,0.27]
[1757353360077,13.59559401,215.68,215.58,0.27]
[1757353360270,13.59559401,215.7,215.58,0.27]
[1757353360455,13.59559401,215.68,215.58,0.27]
[1757353360885,0.7,215.7,215.58,16.50527005]
[1757353361068,13.59559401,215.68,215.61,26.0]
[1757353361268,13.59559401,215.68,215.62,36.74]
[1757353361269,13.59559401,215.66,215.62,36.74]
[1757353361468,13.59559401,215.64,215.62,36.74]
[1757353362583,13.59559401,215.65,215.62,36.74]
[1757353362782,14.29559401,215.65,215.62,36.74]
[1757353363181,4.63735856,215.64,215.62,36.74]
[1757353363375,5.33735856,215.64,215.62,36.74]
[1757353363779,13.59559401,215.62,215.58,0.03]
[1757353363963,6.26897332,215.63,215.58,0.03]
[1757353363964,13.59559401,215.6,215.58,0.03]
[1757353364164,18.30427744,215.6,215.58,0.03]
[1757353364488,0.60880116,215.68,215.59,0.37]
[1757353364679,13.59559401,215.68,215.59,0.37]
[1757353364876,13.59559401,215.66,215.59,0.37]
[1757353365270,18.23254083,215.66,215.59,5.00834111]
[1757353365586,18.33911737,215.66,215.59,4.63834111]
[1757353365791,18.33911737,215.66,215.6,0.37]
[1757353365969,18.33911737,215.66,215.61,36.78]
[1757353366169,18.33911737,215.66,215.61,37.15]
[1757353366985,18.33911737,215.66,215.61,41.78790023]
[1757353367278,13.59559401,215.64,215.61,36.78]
[1757353367486,13.59559401,215.62,215.61,36.78]
[1757353367869,14.29559401,215.65,215.61,36.78]
[1757353368880,5.94548783,215.68,215.61,41.78799861]
[1757353369261,5.94548783,215.68,215.61,36.78]
[1757353369262,0.7,215.67,215.61,36.78]
[1757353369484,13.59559401,215.66,215.61,36.78]
[1757353369680,14.29559401,215.66,215.61,36.78]
[1757353370087,13.59559401,215.64,215.61,36.78]
[1757353370279,13.59559401,215.62,215.58,0.03]
[1757353370493,13.59559401,215.6,215.58,30.33]
[1757353370978,18.23338271,215.62,215.58,30.33]
[1757353371289,13.59559401,215.6,215.58,30.33]
[1757353371598,4.6377887,215.62,215.58,30.33]
[1757353371776,13.59559401,215.61,215.58,30.33]
[1757353372366,14.20439517,215.61,215.58,30.33]
[1757353372587,14.90439517,215.61,215.58,30.33]
[1757353372995,19.54258055,215.61,215.58,30.33]
[1757353373872,0.60880116,215.63,215.58,30.33]
[1757353374074,13.59559401,215.64,215.59,0.37]
[1757353374379,13.59559401,215.64,215.6,0.37]
[1757353374880,14.29559401,215.64,215.58,35.33861722]
[1757353375070,13.59559401,215.64,215.58,35.33861722]
[1757353375578,13.59559401,215.62,215.58,30.33]
[1757353375785,1.30880116,215.61,215.58,30.33]
[1757353375990,1.30880116,215.61,215.58,0.03]
[1757353377074,5.33821892,215.6,215.58,0.03]
[1757353377273,14.20439517,215.59,215.58,0.03]
[1757353377697,26.58180813,215.59,215.58,0.03]
[1757353378200,14.90439517,215.59,215.58,0.03]
[1757353378704,26.58180813,215.59,215.58,0.03]
[1757353379323,22.9543299,215.59,215.58,0.03]
[1757353379481,19.54282923,215.59,215.58,0.03]
[1757353379879,31.22024219,215.59,215.58,0.03]
[1757353380188,19.54282923,215.59,215.58,0.03]
[1757353380373,22.34771207,215.59,215.58,0.03]
[1757353380575,22.95651323,215.59,215.58,0.03]
[1757353381604,34.63392619,215.59,215.58,0.03]
[1757353383027,22.95651323,215.59,215.58,0.03]
[1757353383218,17.00927801,215.59,215.58,0.03]
[1757353383625,34.02512503,215.59,215.58,0.03]
[1757353384304,34.63392619,215.59,215.58,0.03]
[1757353384508,22.95651323,215.59,215.58,0.03]
[1757353384720,34.63392619,215.59,215.58,0.03]
[1757353385225,17.00927801,215.59,215.58,0.03]
[1757353386425,2.4207164,215.67,215.58,26.4]
[1757353386426,8.36626151,215.67,215.58,26.4]
[1757353386729,13.59559401,215.65,215.58,26.4]
[1757353386901,11.67741296,215.62,215.58,0.03]
[1757353387102,13.59559401,215.6,215.58,0.03]
[1757353387397,17.01839671,215.59,215.58,0.03]
[1757353387610,21.65683077,215.59,215.58,0.03]
[1757353387817,17.01839671,215.59,215.58,0.03]
[1757353388219,21.65683077,215.59,215.58,0.03]
[1757353388420,22.35683077,215.59,215.58,0.03]
[1757353388618,22.96563193,215.59,215.58,0.03]
[1757353389503,22.35683077,215.59,215.58,0.03]
[1757353389718,17.01839671,215.59,215.58,0.03]
[1757353391402,21.65683077,215.59,215.58,0.03]
[1757353391606,34.02424373,215.59,215.58,0.03]
[1757353393609,22.95563193,215.59,215.58,0.03]
[1757353393808,34.63304489,215.59,215.58,0.03]
[1757353396319,13.59559401,215.58,215.55,0.03]
[1757353396511,46.22913005,215.59,215.55,0.03]
[1757353396512,13.59559401,215.56,215.55,0.03]
[1757353396713,17.01839671,215.56,215.55,0.03]
[1757353397335,17.01839671,215.56,215.55,0.4]
[1757353398014,17.01839671,215.56,215.55,0.03]
[1757353399435,22.34747631,215.56,215.55,0.03]
[1757353399617,21.65747631,215.56,215.55,0.03]
[1757353399819,34.55397648,215.56,215.5,26.0]
[1757353400132,13.59559401,215.54,215.5,26.0]
[1757353400435,13.59559401,215.52,215.5,26.0]
[1757353400637,3.4228027,215.51,215.5,26.0]
[1757353400840,17.04283248,215.51,215.5,26.0]
[1757353401420,17.04283248,215.51,215.5,26.37]
[1757353401616,17.04283248,215.51,215.5,26.4]
[1757353403526,17.04283248,215.51,215.5,31.04037122]
[1757353406248,3.44723847,215.51,215.5,31.04037122]
[1757353407316,3.45770748,215.51,215.5,42.64129929]
[1757353407522,0.06,215.58,215.5,42.64129929]
[1757353407740,13.59559401,215.56,215.54,30.63945764]
[1757353407942,13.59559401,215.56,215.55,36.9]
[1757353408116,17.05326056,215.56,215.55,36.9]
[1757353412150,17.74326056,215.56,215.5,26.03]
[1757353412361,17.05580494,215.55,215.54,26.0]
[1757353412527,4.75901209,215.55,215.51,36.86]
[1757353412842,17.05580494,215.54,215.51,36.86]
[1757353413053,13.59559401,215.52,215.51,36.86]
[1757353413355,17.05580494,215.52,215.51,36.86]
[1757353414927,17.05580494,215.52,215.5,4.6702958]
[1757353414928,27.35513013,215.52,215.5,0.03]
[1757353415148,22.63398759,215.51,215.5,0.03]
[1757353415339,18.3546061,215.51,215.5,0.03]
[1757353415524,17.74580494,215.51,215.5,0.03]
[1757353416449,22.38596084,215.51,215.5,0.03]
[1757353417938,13.59559401,215.5,215.36,0.4]
[1757353418137,13.59559401,215.48,215.36,0.4]
[1757353418348,13.59559401,215.46,215.36,0.4]
[1757353418551,13.59559401,215.44,215.39,26.0]
[1757353418852,13.59559401,215.42,215.39,26.0]
[1757353419057,13.59559401,215.4,215.37,26.0]
[1757353419249,13.59559401,215.4,215.38,37.04]
[1757353419445,14.28559401,215.42,215.41,26.0]
[1757353419646,17.74660394,215.42,215.41,26.0]
[1757353420355,14.28559401,215.42,215.41,37.02]
[1757353421264,17.74614224,215.42,215.41,37.02]
[1757353421746,14.28559401,215.42,215.41,37.02]
[1757353421947,17.74453576,215.42,215.41,37.02]
[1757353422148,14.28559401,215.42,215.41,37.02]
[1757353422542,14.28559401,215.42,215.37,30.6431431]
[1757353422741,14.28559401,215.42,215.41,26.0]
[1757353423763,13.59559401,215.42,215.41,26.0]
[1757353424568,13.59559401,215.42,215.41,30.64231001]
[1757353424743,13.59559401,215.42,215.41,26.0]
[1757353425144,13.59559401,215.42,215.39,26.0]
[1757353425462,13.59559401,215.42,215.4,36.96]
[1757353427361,13.59559401,215.42,215.39,26.0]
[1757353427362,13.59559401,215.42,215.41,36.94]
[1757353432860,13.59559401,215.42,215.41,36.88]
[1757353433056,13.59559401,215.41,215.35,0.4]
[1757353433463,13.59559401,215.41,215.39,26.0]
[1757353433664,13.59559401,215.41,215.4,36.86]
[1757353433966,13.59559401,215.41,215.38,26.0]
[1757353434563,13.59559401,215.43,215.38,4.64292551]
[1757353434766,3.45546082,215.42,215.38,4.64292551]
[1757353434975,13.59559401,215.41,215.38,4.64292551]
[1757353435166,13.59559401,215.41,215.39,36.86]
[1757353435366,13.59559401,215.42,215.39,36.86]
[1757353435766,13.59559401,215.44,215.39,36.86]
[1757353436077,14.31559401,215.44,215.39,62.86]
[1757353436780,13.59559401,215.42,215.41,26.0]
[1757353438071,13.59559401,215.42,215.34,3.75077713]
[1757353438072,0.72,215.42,215.34,0.4]
[1757353438274,13.59559401,215.4,215.31,0.4]
[1757353438495,13.59559401,215.4,215.35,26.0]
[1757353438667,13.59559401,215.38,215.36,37.16]
[1757353438869,0.72,215.38,215.36,37.16]
[1757353439475,0.72,215.41,215.35,26.0]
[1757353439671,17.05137127,215.4,215.36,37.16]
[1757353439978,14.31559401,215.4,215.36,37.16]
[1757353440371,13.59559401,215.38,215.36,37.16]
[1757353441589,13.59559401,215.38,215.35,26.0]
[1757353441892,4.64245331,215.41,215.32,11.61055134]
[1757353441893,0.72,215.37,215.32,4.64421529]
[1757353442080,13.59559401,215.36,215.35,26.0]
[1757353444268,0.72,215.38,215.35,37.16]
[1757353444469,13.59559401,215.36,215.35,37.16]
[1757353444890,13.59559401,215.38,215.35,37.16]
[1757353445090,14.31559401,215.38,215.35,37.16]
[1757353445300,13.59559401,215.39,215.35,37.16]
[1757353445499,0.72,215.38,215.35,37.16]
[1757353446474,0.72,215.37,215.35,37.16]
[1757353446680,13.59559401,215.36,215.35,37.16]
[1757353447103,3.79500129,215.42,215.3,26.0]
[1757353447104,13.59559401,215.38,215.3,26.0]
[1757353447268,13.59559401,215.35,215.34,26.0]
[1757353447589,14.31559401,215.35,215.34,63.12]
[1757353448185,18.95922388,215.35,215.3,26.0]
[1757353448508,13.59559401,215.33,215.31,37.1]
[1757353448671,14.31559401,215.33,215.32,37.1]
[1757353448876,14.31559401,215.33,215.3,25.5]
[1757353449973,13.59559401,215.33,215.3,25.5]
[1757353450183,0.7,215.35,215.31,37.08]
[1757353450397,13.59559401,215.34,215.31,37.08]
[1757353451175,13.59559401,215.37,215.31,37.08]
[1757353451371,0.7,215.34,215.31,41.72438096]
[1757353451793,0.7,215.36,215.31,41.72438096]
[1757353452005,13.59559401,215.38,215.32,0.4]
[1757353452578,4.15047418,215.37,215.31,41.72438096]
[1757353452797,0.7,215.37,215.31,41.72438096]
[1757353453394,13.59559401,215.35,215.31,41.72438096]
[1757353454289,14.29559401,215.34,215.33,26.0]
[1757353454699,14.29559401,215.34,215.33,63.04]
[1757353455202,13.59559401,215.34,215.33,63.04]
[1757353455397,14.29559401,215.34,215.33,63.04]
[1757353457316,17.75199344,215.34,215.33,63.04]
[1757353458896,17.75199344,215.34,215.3,0.03]
[1757353459101,14.29559401,215.34,215.31,62.96]
[1757353459489,14.29559401,215.34,215.31,26.0]
[1757353459694,14.29559401,215.34,215.32,36.94]
[1757353459915,14.29559401,215.34,215.31,26.0]
[1757353460109,14.29559401,215.34,215.32,36.94]
[1757353460306,17.75515443,215.33,215.3,0.03]
[1757353460516,3.45956042,215.32,215.31,36.94]
[1757353460705,4.15956042,215.32,215.31,36.94]
[1757353462704,8.80381083,215.32,215.31,36.94]
[1757353463294,22.39940484,215.32,215.31,36.94]
[1757353463516,13.59559401,215.31,215.3,0.03]
[1757353463818,17.05515443,215.31,215.3,36.97]
[1757353464012,22.39962054,215.31,215.3,0.03]
[1757353464715,25.58582067,215.31,215.3,0.03]
[1757353466725,22.39962054,215.31,215.3,0.03]
[1757353468122,25.58582067,215.31,215.3,0.03]
[1757353468909,22.39962054,215.31,215.3,0.03]
[1757353469108,25.58582067,215.31,215.3,0.03]
[1757353470226,22.39962054,215.31,215.3,0.03]
[1757353470411,25.58582067,215.31,215.3,0.03]
[1757353473910,22.39962054,215.31,215.3,0.03]
[1757353474125,25.58582067,215.31,215.3,0.03]
[1757353475122,22.39962054,215.31,215.3,0.03]
[1757353475297,17.05515443,215.31,215.3,0.03]
[1757353475501,22.39962054,215.31,215.3,0.03]
[1757353476209,25.58582067,215.31,215.3,0.03]
[1757353478703,13.59559401,215.27,215.17,0.4]
[1757353478899,13.59559401,215.21,215.17,0.4]
[1757353479206,13.59559401,215.19,215.17,0.4]
[1757353479512,16.78179414,215.21,215.15,0.4]
[1757353479721,13.59559401,215.19,215.15,35.2]
[1757353479917,4.64714135,215.19,215.16,0.4]
[1757353480118,4.64714135,215.19,215.15,36.94]
[1757353480308,4.64714135,215.19,215.13,26.0]
[1757353480514,5.33714135,215.19,215.15,36.94]
[1757353480704,4.64714135,215.19,215.15,37.34]
[1757353480903,13.59559401,215.22,215.16,0.4]
[1757353481112,3.45323954,215.21,215.16,0.4]
[1757353481512,3.45323954,215.21,215.17,0.4]
[1757353481702,8.0999799,215.21,215.17,0.4]
[1757353481907,3.45323954,215.2,215.17,0.4]
[1757353482136,3.45323954,215.2,215.16,36.92]
[1757353482343,3.45323954,215.2,215.17,0.4]
[1757353482926,3.45323954,215.2,215.14,0.4]
[1757353483307,3.45323954,215.19,215.15,36.82]
[1757353483505,5.25554375,215.21,215.13,4.64822896]
[1757353483506,5.25554375,215.21,215.16,36.9]
[1757353483706,8.10091146,215.2,215.16,36.9]
[1757353483914,3.45403361,215.19,215.16,37.3]
[1757353484412,3.45403361,215.18,215.16,37.3]
[1757353484623,3.45403361,215.17,215.16,0.4]
[1757353484943,3.45403361,215.19,215.16,37.28]
[1757353485110,3.45403361,215.18,215.16,41.92766415]
[1757353485313,5.33666811,215.21,215.16,37.28]
[1757353485518,3.45302226,215.2,215.16,37.28]
[1757353485829,8.10010097,215.19,215.16,36.88]
[1757353486015,13.59559401,215.17,215.13,0.4]
[1757353486214,13.59559401,215.17,215.14,36.88]
[1757353486404,1.29880116,215.2,215.14,37.28]
[1757353486405,13.59559401,215.18,215.14,37.28]
[1757353486608,3.45226546,215.17,215.15,36.88]
[1757353486810,3.45226546,215.17,215.14,0.4]
[1757353487011,3.45226546,215.17,215.16,36.86]
[1757353487427,3.45297598,215.17,215.16,36.86]
[1757353488537,17.04856999,215.17,215.16,36.86]
[1757353489032,17.04856999,215.17,215.15,36.84]
[1757353489229,3.45297598,215.16,215.15,36.84]
[1757353489431,3.45297598,215.16,215.13,0.4]
[1757353490410,3.45297598,215.16,215.14,36.82]
[1757353490611,3.45297598,215.16,215.12,30.64855997]
[1757353490812,3.45297598,215.16,215.13,36.82]
[1757353491925,3.45297598,215.16,215.12,5.04855997]
[1757353492127,3.45297598,215.16,215.14,36.8]
[1757353492316,13.59559401,215.17,215.14,36.8]
[1757353492514,17.04679188,215.16,215.15,36.8]
[1757353492741,13.59559401,215.15,215.13,0.03]
[1757353492940,13.59559401,215.15,215.14,36.8]
[1757353493144,13.59559401,215.16,215.14,36.8]
[1757353493337,13.59559401,215.16,215.13,0.03]
[1757353493522,4.64770403,215.16,215.13,0.03]
[1757353493730,13.59559401,215.14,215.13,0.03]
[1757353493930,13.59559401,215.14,215.13,36.83]
[1757353494134,13.59559401,215.15,215.13,36.83]
[1757353494333,0.69,215.14,215.13,0.03]
[1757353494522,13.59559401,215.16,215.13,0.03]
[1757353495138,14.28559401,215.16,215.13,0.03]
[1757353496914,0.69,215.15,215.13,0.03]
[1757353497210,0.69,215.15,215.14,36.78]
[1757353497413,0.69,215.15,215.13,0.03]
[1757353497615,0.69,215.15,215.14,36.76]
[1757353498817,14.28559401,215.15,215.14,36.76]
[1757353500047,13.59559401,215.14,215.13,0.03]
[1757353500537,13.59559401,215.17,215.13,5.07835215]
[1757353500923,13.94602887,215.22,215.16,26.0]
[1757353501124,13.94602887,215.22,215.17,37.2]
[1757353501329,13.59559401,215.25,215.18,0.4]
[1757353501537,3.45402951,215.24,215.18,0.4]
[1757353501837,3.45402951,215.24,215.19,36.8]
[1757353502034,3.45402951,215.24,215.19,37.2]
[1757353502438,13.59559401,215.22,215.19,37.2]
[1757353502635,13.59559401,215.25,215.19,5.0469238]
[1757353502846,3.45543339,215.24,215.2,36.8]
[1757353503048,3.45543339,215.23,215.21,0.4]
[1757353503228,13.59559401,215.27,215.22,36.8]
[1757353503423,13.59559401,215.25,215.22,36.8]
[1757353503730,3.45672986,215.24,215.19,5.0469238]
[1757353503933,3.45672986,215.23,215.2,37.18]
[1757353504445,3.45672986,215.22,215.2,37.18]
[1757353504640,13.59559401,215.24,215.2,37.18]
[1757353504827,3.45866275,215.23,215.2,41.82672838]
[1757353505028,3.45866275,215.22,215.2,41.82672838]
[1757353505225,2.48522312,215.3,215.21,0.4]
[1757353505535,13.59559401,215.28,215.23,26.0]
[1757353505739,3.46006889,215.27,215.24,37.18]
[1757353506069,3.46006889,215.27,215.25,0.4]
[1757353506342,13.65559401,215.3,215.25,0.4]
[1757353506544,3.46057904,215.29,215.25,0.4]
[1757353506734,3.46057904,215.28,215.27,4.64532912]
[1757353506929,3.46057904,215.28,215.27,30.64532912]
[1757353507130,0.06,215.3,215.29,26.0]
[1757353507654,0.06,215.3,215.29,26.4]
[1757353508148,0.06,215.3,215.29,30.20291066]
[1757353508527,0.06,215.3,215.29,26.4]
[1757353508948,0.06,215.3,215.29,31.04489758]
[1757353509146,0.06,215.3,215.29,67.82489758]
[1757353509338,0.06,215.34,215.29,79.43714153]
[1757353509652,0.06,215.34,215.3,0.4]
[1757353509947,0.06,215.34,215.31,36.78]
[1757353510152,3.51828254,215.34,215.29,30.64489758]
[1757353510345,17.76387655,215.33,215.29,36.84]
[1757353510661,13.59559401,215.31,215.24,4.64597658]
[1757353510829,4.16828254,215.3,215.25,36.84]
[1757353511030,3.45828254,215.29,215.25,41.48573612]
[1757353511238,4.16828254,215.29,215.25,41.48573612]
[1757353511440,3.45828254,215.28,215.25,41.48573612]
[1757353512046,0.71,215.29,215.25,41.48573612]
[1757353513354,13.59559401,215.31,215.26,0.4]
[1757353513598,13.65559401,215.34,215.27,0.4]
[1757353513737,3.45613683,215.33,215.27,0.4]
[1757353514055,3.45613683,215.33,215.28,26.0]